[Event "1000GM Spring IM-D 2024"]
[Site "New York"]
[Date "2024.03.30"]
[Round "6.3"]
[White "Yoo, Eugene"]
[Black "Zaderman, Vitaly"]
[Result "1-0"]
[ECO "E69"]
[WhiteElo "2205"]
[BlackElo "2177"]
[Annotator "RC"]
[PlyCount "69"]
[EventDate "2024.03.26"]
[EventType "tourn"]
[EventCountry "USA"]
[SourceTitle "playchess.com"]
[Source "ChessBase"]
[SourceQuality "1"]
[TimeControl "5400+30"]

1. d4 {[%emt 0:01:21]} Nf6 {[%emt 0:00:07]} 2. Nf3 {[%emt 0:00:31]} g6 {[%emt 0:01:02]} 3. g3 {[%emt 0:00:56]} Bg7 {[%emt 0:00:09]} 4. Bg2 {[%emt 0:00:05]} d6 {[%emt 0:00:17]} 5. c4 {[%emt 0:00:17]} c6 {[%emt 0:00:14]} 6. Nc3 {[%emt 0:00:05]} Nbd7 {[%emt 0:00:15]} 7. O-O {[%emt 0:00:20]} O-O {[%emt 0:00:29]} 8. e4 {[%emt 0:01:00]} e5 {[%emt 0:01:01]} 9. h3 {[%emt 0:00:35]} Rb8 {[%emt 0:01:50]} 10. Be3 {[%emt 0:03:16]} a6 {[%emt 0:01:47]} 11. d5 {[%emt 0:06:06]} c5 {[%emt 0:00:24]} 12. a4 {[%emt 0:00:51]} b6 {[%emt 0:02:41]} 13. g4 {[%emt 0:08:03]} Ne8 {[%emt 0:02:33]} 14. Re1 {[%emt 0:02:48]} f6 {[%emt 0:05:00]} 15. Bf1 {[%emt 0:07:39]} Rf7 {[%emt 0:02:23]} 16. Bd3 {[%emt 0:02:21]} Nf8 {[%emt 0:00:29]} 17. Nd2 {[%emt 0:05:03]} g5 {[%emt 0:05:56]} 18. a5 {[%emt 0:04:51]} bxa5 {[%emt 0:00:26]} 19. Nb3 {[%emt 0:02:04]} Ng6 {[%emt 0:02:31]} 20. Nxa5 {[%emt 0:04:11]} Rxb2 {[%emt 0:06:34]} 21. Na4 {[%emt 0:01:11]} Qxa5 {[%emt 0:02:19]} 22. Nxb2 {[%emt 0:01:11]} Qc7 {[%emt 0:00:30]} 23. Bc2 {[%emt 0:04:37]} Nf4 {[%emt 0:00:18]} 24. Ba4 {[%emt 0:02:25]} Re7 {[%emt 0:00:24]} 25. Kh2 {[%emt 0:02:07]} h5 {[%emt 0:01:01]} 26. f3 {[%emt 0:01:03]} Bf8 {[%emt 0:00:33]} 27. Bxf4 {[%emt 0:00:42]} exf4 {[%emt 0:00:18]} 28. Nd3 {[%emt 0:01:00]} hxg4 {[%emt 0:00:54]} 29. hxg4 {[%emt 0:00:20]} f5 {[%emt 0:01:03]} 30. exf5 {[%emt 0:05:22]} Nf6 {[%emt 0:00:27]} 31. Rxe7 {[%emt 0:01:05]} Qxe7 {[%emt 0:00:12]} 32. Qe1 {[%emt 0:00:51]} Qh7+ {[%emt 0:02:55]} 33. Kg2 {[%emt 0:00:11]} Be7 {[%emt 0:00:54]} 34. Rb1 {[%emt 0:01:06]} Bxf5 {[%emt 0:00:41]} 35. gxf5 {[%emt 0:01:08]} 1-0

[Event "1000GM Spring IM-D 2024"]
[Site "New York"]
[Date "2024.03.30"]
[Round "6.4"]
[White "Gaw, Chloe"]
[Black "Polyik, Peter"]
[Result "0-1"]
[ECO "E45"]
[WhiteElo "2092"]
[BlackElo "2295"]
[Annotator "RC"]
[PlyCount "92"]
[EventDate "2024.03.26"]
[EventType "tourn"]
[EventCountry "USA"]
[SourceTitle "playchess.com"]
[Source "ChessBase"]
[SourceQuality "1"]
[TimeControl "5400+30"]

1. d4 {[%emt 0:01:13]} Nf6 {[%emt 0:07:17]} 2. c4 {[%emt 0:00:03]} e6 {[%emt 0:00:06]} 3. Nc3 {[%emt 0:00:05]} Bb4 {[%emt 0:00:06]} 4. e3 {[%emt 0:00:06]} b6 {[%emt 0:00:16]} 5. Nge2 {[%emt 0:00:41]} Ba6 {[%emt 0:00:24]} 6. a3 {[%emt 0:02:13]} Be7 {[%emt 0:00:29]} 7. Ng3 {[%emt 0:01:38]} d5 {[%emt 0:04:45]} 8. b3 {[%emt 0:04:48]} O-O {[%emt 0:02:32]} 9. Bd3 {[%emt 0:02:36]} c5 {[%emt 0:06:59]} 10. cxd5 {[%emt 0:13:59]} Bxd3 {[%emt 0:02:33]} 11. Qxd3 {[%emt 0:00:16]} Nxd5 {[%emt 0:01:26]} 12. Bb2 {[%emt 0:08:18]} cxd4 {[%emt 0:22:35]} 13. Nxd5 {[%emt 0:02:50]} Qxd5 {[%emt 0:00:07]} 14. Qxd4 {[%emt 0:02:33]} Qxd4 {[%emt 0:00:09]} 15. Bxd4 {[%emt 0:00:07]} Nc6 {[%emt 0:00:11]} 16. Bc3 {[%emt 0:00:22]} Na5 {[%emt 0:05:40]} 17. b4 {[%emt 0:08:34]} Rfc8 {[%emt 0:06:51]} 18. Ne4 {[%emt 0:08:55]} Nc4 {[%emt 0:02:06]} 19. Ke2 {[%emt 0:15:14]} f5 {[%emt 0:01:17]} 20. Ng3 {[%emt 0:05:35]} Nxe3 {[%emt 0:01:07]} 21. fxe3 {[%emt 0:09:36]} Rxc3 {[%emt 0:00:10]} 22. Rhd1 {[%emt 0:00:21]} Rd8 {[%emt 0:03:45]} 23. Rac1 {[%emt 0:03:45]} Rxd1 {[%emt 0:04:24]} 24. Rxc3 {[%emt 0:08:42]} Rd7 {[%emt 0:00:08]} 25. Nf1 {[%emt 0:00:00]} Kf7 {[%emt 0:01:13]} 26. Nd2 {[%emt 0:00:00]} Bd6 {[%emt 0:03:12]} 27. h3 {[%emt 0:00:00]} Rc7 {[%emt 0:00:28]} 28. Rd3 {[%emt 0:00:00]} Ke7 {[%emt 0:01:19]} 29. Kd1 {[%emt 0:00:00]} g6 {[%emt 0:01:41]} 30. Nf3 {[%emt 0:00:26]} e5 {[%emt 0:03:49]} 31. Rb3 {[%emt 0:00:38]} Ke6 {[%emt 0:02:35]} 32. Kd2 {[%emt 0:01:03]} Be7 {[%emt 0:00:25]} 33. Ne1 {[%emt 0:01:10]} h5 {[%emt 0:01:08]} 34. a4 {[%emt 0:00:28]} g5 {[%emt 0:00:31]} 35. Nd3 {[%emt 0:00:46]} Rc4 {[%emt 0:00:50]} 36. Rc3 {[%emt 0:00:48]} Rxc3 {[%emt 0:00:41]} 37. Kxc3 {[%emt 0:00:04]} e4 {[%emt 0:00:11]} 38. Nf2 {[%emt 0:00:47]} Kd5 {[%emt 0:00:09]} 39. g3 {[%emt 0:00:31]} Bf6+ {[%emt 0:00:09]} 40. Kb3 {[%emt 0:00:13]} Be5 {[%emt 0:00:18]} 41. Nh1 {[%emt 0:00:15]} a6 {[%emt 0:00:13]} 42. b5 {[%emt 0:00:42]} a5 {[%emt 0:00:12]} 43. Nf2 {[%emt 0:00:34]} Bxg3 {[%emt 0:00:07]} 44. Nd1 {[%emt 0:00:06]} Be5 {[%emt 0:00:06]} 45. Nf2 {[%emt 0:00:36]} g4 {[%emt 0:00:17]} 46. hxg4 {[%emt 0:00:30]} fxg4 {[%emt 0:00:08]} 0-1

[Event "1000GM Spring IM-D 2024"]
[Site "New York"]
[Date "2024.03.30"]
[Round "6.5"]
[White "Ho, Cooper"]
[Black "Rohde, Michael"]
[Result "1-0"]
[ECO "B47"]
[WhiteElo "2004"]
[BlackElo "2318"]
[Annotator "RC"]
[PlyCount "101"]
[EventDate "2024.03.26"]
[EventType "tourn"]
[EventCountry "USA"]
[SourceTitle "playchess.com"]
[Source "ChessBase"]
[SourceQuality "1"]
[TimeControl "5400+30"]

1. e4 {[%emt 0:01:45]} c5 {[%emt 0:26:20]} 2. Nf3 {[%emt 0:00:09]} e6 {[%emt 0:00:02]} 3. d4 {[%emt 0:00:09]} cxd4 {[%emt 0:00:03]} 4. Nxd4 {[%emt 0:00:08]} Nc6 {[%emt 0:00:02]} 5. Nc3 {[%emt 0:00:11]} Qc7 {[%emt 0:00:04]} 6. g3 {[%emt 0:00:08]} a6 {[%emt 0:00:18]} 7. Bg2 {[%emt 0:00:09]} d6 {[%emt 0:00:16]} 8. Nxc6 {[%emt 0:01:58]} bxc6 {[%emt 0:00:16]} 9. O-O {[%emt 0:00:15]} Bb7 {[%emt 0:01:46]} 10. Na4 {[%emt 0:07:45]} Nf6 {[%emt 0:06:21]} 11. b4 {[%emt 0:15:24]} Be7 {[%emt 0:03:55]} 12. Re1 {[%emt 0:03:29]} O-O {[%emt 0:00:57]} 13. c4 {[%emt 0:03:04]} Nd7 {[%emt 0:02:38]} 14. Bf4 {[%emt 0:06:29]} a5 {[%emt 0:07:18]} 15. a3 {[%emt 0:02:48]} Rfd8 {[%emt 0:07:51]} 16. Qb3 {[%emt 0:11:30]} Rab8 {[%emt 0:03:19]} 17. Rab1 {[%emt 0:05:24]} Ba8 {[%emt 0:02:46]} 18. Red1 {[%emt 0:08:14]} e5 {[%emt 0:08:25]} 19. Be3 {[%emt 0:07:44]} axb4 {[%emt 0:03:00]} 20. axb4 {[%emt 0:00:13]} d5 {[%emt 0:01:29]} 21. cxd5 {[%emt 0:01:39]} cxd5 {[%emt 0:00:39]} 22. Rbc1 {[%emt 0:04:15]} Qd6 {[%emt 0:01:15]} 23. exd5 {[%emt 0:00:19]} Rxb4 {[%emt 0:02:10]} 24. Qc2 {[%emt 0:02:55]} h6 {[%emt 0:00:51]} 25. Nc3 {[%emt 0:03:02]} Nf6 {[%emt 0:01:12]} 26. Qe2 {[%emt 0:02:51]} Bf8 {[%emt 0:07:29]} 27. Ra1 {[%emt 0:01:35]} Rc8 {[%emt 0:04:11]} 28. Nb5 {[%emt 0:02:36]} Qd7 {[%emt 0:00:56]} 29. Na7 {[%emt 0:01:50]} Re8 {[%emt 0:01:14]} 30. Nc6 {[%emt 0:00:38]} Bxc6 {[%emt 0:01:29]} 31. dxc6 {[%emt 0:00:06]} Qe6 {[%emt 0:00:50]} 32. Rdc1 {[%emt 0:01:23]} e4 {[%emt 0:00:56]} 33. c7 {[%emt 0:01:34]} Rc8 {[%emt 0:01:55]} 34. Ra6 {[%emt 0:01:13]} Qd7 {[%emt 0:00:25]} 35. Rac6 {[%emt 0:01:38]} Rb1 {[%emt 0:00:54]} 36. Rxb1 {[%emt 0:01:30]} Qxc6 {[%emt 0:00:04]} 37. Rc1 {[%emt 0:00:05]} Qd7 {[%emt 0:01:18]} 38. Bf4 {[%emt 0:00:26]} Nd5 {[%emt 0:00:35]} 39. Qd2 {[%emt 0:01:35]} Qe6 {[%emt 0:00:45]} 40. Bh3 {[%emt 0:00:46]} Qxh3 {[%emt 0:03:07]} 41. Qxd5 {[%emt 0:00:04]} g5 {[%emt 0:00:10]} 42. Be3 {[%emt 0:00:59]} Qe6 {[%emt 0:00:52]} 43. Qb7 {[%emt 0:01:06]} Qd7 {[%emt 0:00:53]} 44. Bb6 {[%emt 0:00:36]} Ba3 {[%emt 0:00:32]} 45. Qxc8+ {[%emt 0:00:24]} Qxc8 {[%emt 0:00:07]} 46. Rd1 {[%emt 0:00:03]} Kg7 {[%emt 0:01:02]} 47. Rd8 {[%emt 0:00:08]} Qb7 {[%emt 0:00:20]} 48. Bd4+ {[%emt 0:00:18]} Kg6 {[%emt 0:00:21]} 49. c8=Q {[%emt 0:02:30]} Qb3 {[%emt 0:00:30]} 50. Qc6+ {[%emt 0:00:00]} Kf5 {[%emt 0:00:27]} 51. Qd5+ {[%emt 0:00:00]} 1-0

[Event "1000GM Spring IM-D 2024"]
[Site "New York"]
[Date "2024.03.30"]
[Round "6.6"]
[White "Urhegyi, Marton"]
[Black "Safranek, William"]
[Result "0-1"]
[ECO "C63"]
[WhiteElo "2258"]
[BlackElo "1950"]
[Annotator "RC"]
[PlyCount "140"]
[EventDate "2024.03.26"]
[EventType "tourn"]
[EventCountry "USA"]
[SourceTitle "playchess.com"]
[Source "ChessBase"]
[SourceQuality "1"]
[TimeControl "5400+30"]

1. e4 {[%emt 0:08:58]} e5 {[%emt 0:00:06]} 2. Nf3 {[%emt 0:00:07]} Nc6 {[%emt 0:00:06]} 3. Bb5 {[%emt 0:00:05]} f5 {[%emt 0:00:06]} 4. Nc3 {[%emt 0:02:29]} Nf6 {[%emt 0:00:10]} 5. Bxc6 {[%emt 0:08:14]} bxc6 {[%emt 0:05:57]} 6. Nxe5 {[%emt 0:10:08]} Qe7 {[%emt 0:00:42]} 7. d4 {[%emt 0:02:21]} Bb7 {[%emt 0:04:23]} 8. Bg5 {[%emt 0:06:04]} O-O-O {[%emt 0:00:18]} 9. O-O {[%emt 0:06:26]} d6 {[%emt 0:02:27]} 10. Nd3 {[%emt 0:04:10]} fxe4 {[%emt 0:00:23]} 11. Re1 {[%emt 0:03:18]} d5 {[%emt 0:01:59]} 12. Nc5 {[%emt 0:02:29]} Qf7 {[%emt 0:00:35]} 13. N3a4 {[%emt 0:01:13]} Bd6 {[%emt 0:02:42]} 14. Re3 {[%emt 0:18:35]} Qg6 {[%emt 0:12:50]} 15. Qd2 {[%emt 0:12:38]} Qxg5 {[%emt 0:16:29]} 16. Qb4 {[%emt 0:01:29]} Rde8 {[%emt 0:01:22]} 17. Qxb7+ {[%emt 0:01:46]} Kd8 {[%emt 0:00:05]} 18. Qxc6 {[%emt 0:01:29]} Ke7 {[%emt 0:06:54]} 19. Nc3 {[%emt 0:00:34]} Qf5 {[%emt 0:01:36]} 20. Rae1 {[%emt 0:02:08]} Kf7 {[%emt 0:01:45]} 21. h3 {[%emt 0:02:21]} Rhf8 {[%emt 0:01:38]} 22. Ne2 {[%emt 0:01:14]} Kg8 {[%emt 0:00:34]} 23. Rf1 {[%emt 0:00:43]} Re7 {[%emt 0:04:17]} 24. Nb7 {[%emt 0:00:43]} Bf4 {[%emt 0:03:03]} 25. Nxf4 {[%emt 0:00:16]} Qxf4 {[%emt 0:00:02]} 26. Nc5 {[%emt 0:00:24]} Qf5 {[%emt 0:00:04]} 27. b3 {[%emt 0:00:49]} Rd8 {[%emt 0:08:31]} 28. Qa6 {[%emt 0:00:33]} Nh5 {[%emt 0:00:55]} 29. Qe2 {[%emt 0:01:04]} Nf4 {[%emt 0:00:43]} 30. Qg4 {[%emt 0:00:17]} Qf6 {[%emt 0:00:07]} 31. c3 {[%emt 0:00:58]} h5 {[%emt 0:00:59]} 32. Qg3 {[%emt 0:00:32]} Rd6 {[%emt 0:01:39]} 33. Kh1 {[%emt 0:00:40]} Rf7 {[%emt 0:01:53]} 34. f3 {[%emt 0:01:04]} Qh6 {[%emt 0:00:34]} 35. Qe1 {[%emt 0:01:05]} Rg6 {[%emt 0:01:44]} 36. Rg1 {[%emt 0:00:31]} Qg5 {[%emt 0:01:34]} 37. fxe4 {[%emt 0:00:26]} Nxg2 {[%emt 0:00:13]} 38. Qe2 {[%emt 0:00:33]} Qxe3 {[%emt 0:00:14]} 39. Qxe3 {[%emt 0:00:12]} Nxe3 {[%emt 0:00:10]} 40. Rxg6 {[%emt 0:00:04]} Rf1+ {[%emt 0:01:36]} 41. Rg1 {[%emt 0:01:03]} Rf3 {[%emt 0:00:46]} 42. Kh2 {[%emt 0:00:44]} h4 {[%emt 0:00:40]} 43. Ne6 {[%emt 0:00:29]} Rf2+ {[%emt 0:01:00]} 44. Kh1 {[%emt 0:00:02]} dxe4 {[%emt 0:00:47]} 45. Rxg7+ {[%emt 0:00:32]} Kh8 {[%emt 0:00:04]} 46. Rg5 {[%emt 0:00:49]} Rf1+ {[%emt 0:01:29]} 47. Kh2 {[%emt 0:00:29]} Rf2+ {[%emt 0:01:02]} 48. Kh1 {[%emt 0:00:01]} Nd1 {[%emt 0:03:25]} 49. Rh5+ {[%emt 0:00:53]} Kg8 {[%emt 0:00:04]} 50. Rxh4 {[%emt 0:00:18]} e3 {[%emt 0:00:16]} 51. Rg4+ {[%emt 0:00:45]} Kf7 {[%emt 0:01:03]} 52. Ng5+ {[%emt 0:00:14]} Ke7 {[%emt 0:00:15]} 53. Re4+ {[%emt 0:00:47]} Kf6 {[%emt 0:00:08]} 54. Re5 {[%emt 0:00:36]} Rxa2 {[%emt 0:01:13]} 55. Kg1 {[%emt 0:00:35]} Nxc3 {[%emt 0:05:01]} 56. Ne4+ {[%emt 0:00:22]} Nxe4 {[%emt 0:00:06]} 57. Rxe4 {[%emt 0:00:01]} e2 {[%emt 0:01:08]} 58. Kf2 {[%emt 0:00:19]} Rb2 {[%emt 0:00:05]} 59. Re3 {[%emt 0:00:45]} Kf5 {[%emt 0:00:42]} 60. h4 {[%emt 0:00:56]} Kf4 {[%emt 0:01:19]} 61. Re7 {[%emt 0:00:34]} Rxb3 {[%emt 0:00:19]} 62. Kxe2 {[%emt 0:00:14]} a5 {[%emt 0:00:48]} 63. h5 {[%emt 0:00:38]} a4 {[%emt 0:00:30]} 64. h6 {[%emt 0:00:38]} Rh3 {[%emt 0:00:05]} 65. Rxc7 {[%emt 0:00:32]} a3 {[%emt 0:00:27]} 66. Ra7 {[%emt 0:00:24]} a2 {[%emt 0:00:14]} 67. Kd2 {[%emt 0:00:27]} Rh1 {[%emt 0:00:07]} 68. h7 {[%emt 0:00:33]} Rxh7 {[%emt 0:00:05]} 69. Ra4 {[%emt 0:00:36]} Rh1 {[%emt 0:00:08]} 70. d5+ {[%emt 0:00:16]} Ke5 {[%emt 0:00:06]} 0-1

[Event "1000GM Spring IM-D 2024"]
[Site "New York"]
[Date "2024.03.30"]
[Round "6.7"]
[White "Jakovljevic, Vlado"]
[Black "Ho, Carter"]
[Result "1/2-1/2"]
[ECO "D38"]
[WhiteElo "2356"]
[BlackElo "2108"]
[Annotator "RC"]
[PlyCount "68"]
[EventDate "2024.03.26"]
[EventType "tourn"]
[EventCountry "USA"]
[SourceTitle "playchess.com"]
[Source "ChessBase"]
[SourceQuality "1"]
[TimeControl "5400+30"]

1. Nf3 {[%emt 0:00:03]} d5 {[%emt 0:02:39]} 2. d4 {[%emt 0:00:06]} Nf6 {[%emt 0:00:05]} 3. c4 {[%emt 0:00:03]} e6 {[%emt 0:00:08]} 4. Nc3 {[%emt 0:00:05]} Bb4 {[%emt 0:00:05]} 5. cxd5 {[%emt 0:00:04]} exd5 {[%emt 0:00:06]} 6. Bg5 {[%emt 0:00:02]} h6 {[%emt 0:05:38]} 7. Bxf6 {[%emt 0:00:06]} Qxf6 {[%emt 0:00:06]} 8. Qa4+ {[%emt 0:00:04]} Nc6 {[%emt 0:00:09]} 9. e3 {[%emt 0:00:03]} O-O {[%emt 0:00:58]} 10. Be2 {[%emt 0:02:54]} Be6 {[%emt 0:00:51]} 11. O-O {[%emt 0:00:13]} a6 {[%emt 0:00:13]} 12. Rac1 {[%emt 0:01:05]} Bd6 {[%emt 0:05:27]} 13. Qd1 {[%emt 0:11:16]} g5 {[%emt 0:16:29]} 14. e4 {[%emt 0:21:09]} dxe4 {[%emt 0:12:37]} 15. Nxe4 {[%emt 0:00:22]} Qf4 {[%emt 0:01:34]} 16. Nxd6 {[%emt 0:24:30]} Qxd6 {[%emt 0:00:08]} 17. Bc4 {[%emt 0:00:20]} Bxc4 {[%emt 0:15:37]} 18. Rxc4 {[%emt 0:00:04]} Rad8 {[%emt 0:00:07]} 19. h3 {[%emt 0:00:48]} b5 {[%emt 0:05:25]} 20. Rc3 {[%emt 0:03:38]} Nxd4 {[%emt 0:00:27]} 21. Nxd4 {[%emt 0:04:16]} Qxd4 {[%emt 0:00:10]} 22. Qc2 {[%emt 0:00:47]} Qd2 {[%emt 0:10:06]} 23. Rxc7 {[%emt 0:00:08]} Qxc2 {[%emt 0:00:05]} 24. Rxc2 {[%emt 0:00:05]} Rd6 {[%emt 0:00:08]} 25. Rfc1 {[%emt 0:00:42]} Rfd8 {[%emt 0:01:20]} 26. Kf1 {[%emt 0:00:12]} Kg7 {[%emt 0:00:20]} 27. Ke1 {[%emt 0:00:31]} R8d7 {[%emt 0:03:07]} 28. Rc6 {[%emt 0:00:38]} Re7+ {[%emt 0:00:49]} 29. Kf1 {[%emt 0:00:02]} Rd2 {[%emt 0:00:08]} 30. Re1 {[%emt 0:04:40]} Red7 {[%emt 0:02:38]} 31. Re2 {[%emt 0:00:15]} Rd1+ {[%emt 0:00:09]} 32. Re1 {[%emt 0:00:04]} R1d2 {[%emt 0:00:12]} 33. Re2 {[%emt 0:00:05]} Rd1+ {[%emt 0:00:04]} 34. Re1 {[%emt 0:00:05]} R1d2 {[%emt 0:00:05]} 1/2-1/2

[Event "1000GM Spring IM-D 2024"]
[Site "New York"]
[Date "2024.03.30"]
[Round "6.8"]
[White "Khodzhamkuliev, Bahadur"]
[Black "Espinosa, Pedro"]
[Result "0-1"]
[ECO "D44"]
[WhiteElo "2159"]
[BlackElo "2229"]
[Annotator "RC"]
[PlyCount "94"]
[EventDate "2024.03.26"]
[EventType "tourn"]
[EventCountry "USA"]
[SourceTitle "playchess.com"]
[Source "ChessBase"]
[SourceQuality "1"]
[TimeControl "5400+30"]

1. Nf3 {[%emt 0:00:03]} d5 {[%emt 0:05:58]} 2. d4 {[%emt 0:00:14]} Nf6 {[%emt 0:00:23]} 3. c4 {[%emt 0:01:51]} c6 {[%emt 0:00:09]} 4. Nc3 {[%emt 0:01:11]} e6 {[%emt 0:00:40]} 5. Bg5 {[%emt 0:01:10]} dxc4 {[%emt 0:01:45]} 6. e4 {[%emt 0:02:53]} b5 {[%emt 0:01:02]} 7. e5 {[%emt 0:01:01]} h6 {[%emt 0:00:47]} 8. Bh4 {[%emt 0:00:21]} g5 {[%emt 0:00:40]} 9. Nxg5 {[%emt 0:01:59]} hxg5 {[%emt 0:01:11]} 10. Bxg5 {[%emt 0:00:06]} Nbd7 {[%emt 0:00:48]} 11. exf6 {[%emt 0:02:27]} Bb7 {[%emt 0:01:33]} 12. g3 {[%emt 0:04:25]} Qb6 {[%emt 0:01:13]} 13. Bg2 {[%emt 0:01:00]} O-O-O {[%emt 0:01:27]} 14. O-O {[%emt 0:02:31]} c5 {[%emt 0:02:24]} 15. d5 {[%emt 0:01:40]} b4 {[%emt 1:18:00]} 16. Na4 {[%emt 0:02:25]} Qa6 {[%emt 0:00:00]} 17. a3 {[%emt 0:01:14]} Bxd5 {[%emt 0:00:00]} 18. Bxd5 {[%emt 0:00:53]} Ne5 {[%emt 0:00:00]} 19. Nxc5 {[%emt 0:01:49]} Bxc5 {[%emt 0:00:00]} 20. axb4 {[%emt 0:00:31]} Bxf2+ {[%emt 0:00:00]} 21. Kxf2 {[%emt 0:03:28]} Qb5 {[%emt 0:00:00]} 22. Kg2 {[%emt 0:16:55]} Rxd5 {[%emt 0:00:00]} 23. Qe2 {[%emt 0:14:09]} Qc6 {[%emt 0:00:00]} 24. Kg1 {[%emt 0:00:44]} Nd3 {[%emt 0:00:00]} 25. Qf3 {[%emt 0:11:14]} Kb7 {[%emt 0:00:00]} 26. Be3 {[%emt 0:06:10]} a6 {[%emt 0:00:00]} 27. Bc5 {[%emt 0:05:29]} Nxb2 {[%emt 0:00:00]} 28. Ra5 {[%emt 0:02:30]} Nd3 {[%emt 0:00:00]} 29. b5 {[%emt 0:01:41]} Qxc5+ {[%emt 0:00:00]} 30. Kg2 {[%emt 0:00:34]} axb5 {[%emt 0:00:00]} 31. Rfa1 {[%emt 0:02:17]} Nb4 {[%emt 0:00:00]} 32. Ra7+ {[%emt 0:00:41]} Kb6 {[%emt 0:00:00]} 33. Rxf7 {[%emt 0:08:20]} Qd4 {[%emt 0:00:00]} 34. Re1 {[%emt 0:01:32]} e5 {[%emt 0:00:35]} 35. Re7 {[%emt 0:00:45]} Nd3 {[%emt 0:01:28]} 36. Re2 {[%emt 0:00:40]} Qc5 {[%emt 0:01:42]} 37. Re6+ {[%emt 0:00:44]} Rd6 {[%emt 0:00:44]} 38. Re7 {[%emt 0:00:17]} Qc6 {[%emt 0:00:50]} 39. Qxc6+ {[%emt 0:00:38]} Kxc6 {[%emt 0:00:15]} 40. f7 {[%emt 0:00:04]} Rf8 {[%emt 0:00:34]} 41. Ra2 {[%emt 0:00:19]} c3 {[%emt 0:00:48]} 42. g4 {[%emt 0:00:56]} Kd5 {[%emt 0:00:27]} 43. Rc7 {[%emt 0:00:25]} c2 {[%emt 0:00:40]} 44. Raxc2 {[%emt 0:00:36]} Ne1+ {[%emt 0:00:07]} 45. Kg3 {[%emt 0:00:03]} Nxc2 {[%emt 0:00:08]} 46. g5 {[%emt 0:00:04]} Nd4 {[%emt 0:00:42]} 47. g6 {[%emt 0:00:05]} Rxg6+ {[%emt 0:00:08]} 0-1

[Event "1000GM Spring IM-D 2024"]
[Site "New York"]
[Date "2024.03.30"]
[Round "6.9"]
[White "Mou, Iris"]
[Black "Bonin, Jay"]
[Result "0-1"]
[ECO "B15"]
[WhiteElo "2216"]
[BlackElo "2154"]
[Annotator "RC"]
[PlyCount "114"]
[EventDate "2024.03.26"]
[EventType "tourn"]
[EventCountry "USA"]
[SourceTitle "playchess.com"]
[Source "ChessBase"]
[SourceQuality "1"]
[TimeControl "5400+30"]

1. e4 {[%emt 0:00:03]} c6 {[%emt 0:00:21]} 2. d4 {[%emt 0:00:12]} a6 {[%emt 0:00:11]} 3. Nc3 {[%emt 0:00:13]} d5 {[%emt 0:00:10]} 4. Nf3 {[%emt 0:00:14]} Bg4 {[%emt 0:00:06]} 5. h3 {[%emt 0:00:11]} Bh5 {[%emt 0:00:12]} 6. exd5 {[%emt 0:00:15]} cxd5 {[%emt 0:00:04]} 7. g4 {[%emt 0:00:11]} Bg6 {[%emt 0:00:03]} 8. h4 {[%emt 0:00:10]} Nc6 {[%emt 0:02:34]} 9. h5 {[%emt 0:19:41]} Be4 {[%emt 0:00:05]} 10. Be3 {[%emt 0:00:22]} Bxf3 {[%emt 0:02:54]} 11. Qxf3 {[%emt 0:00:11]} e6 {[%emt 0:00:05]} 12. g5 {[%emt 0:07:19]} h6 {[%emt 0:02:33]} 13. g6 {[%emt 0:12:08]} f5 {[%emt 0:00:12]} 14. O-O-O {[%emt 0:06:42]} Nf6 {[%emt 0:03:55]} 15. Bf4 {[%emt 0:03:11]} Qa5 {[%emt 0:09:37]} 16. Qe2 {[%emt 0:10:38]} Kd7 {[%emt 0:03:01]} 17. Kb1 {[%emt 0:02:21]} Bb4 {[%emt 0:01:43]} 18. Rh3 {[%emt 0:01:20]} Rac8 {[%emt 0:07:27]} 19. a3 {[%emt 0:05:45]} Bd6 {[%emt 0:07:14]} 20. Bxd6 {[%emt 0:10:00]} Kxd6 {[%emt 0:00:07]} 21. Re3 {[%emt 0:00:09]} Rhe8 {[%emt 0:00:26]} 22. Na2 {[%emt 0:02:31]} Qb6 {[%emt 0:03:48]} 23. Rb3 {[%emt 0:02:35]} Qc7 {[%emt 0:01:05]} 24. Nc1 {[%emt 0:03:03]} Na5 {[%emt 0:02:48]} 25. Rc3 {[%emt 0:01:43]} Qb6 {[%emt 0:04:51]} 26. Rxc8 {[%emt 0:05:44]} Rxc8 {[%emt 0:00:07]} 27. f3 {[%emt 0:01:18]} Kd7 {[%emt 0:01:20]} 28. Nd3 {[%emt 0:01:03]} Nc4 {[%emt 0:02:49]} 29. Ne5+ {[%emt 0:00:53]} Ke7 {[%emt 0:00:26]} 30. Nxc4 {[%emt 0:00:39]} Rxc4 {[%emt 0:00:14]} 31. Qe5 {[%emt 0:00:29]} Rc6 {[%emt 0:05:43]} 32. Re1 {[%emt 0:00:50]} Kd7 {[%emt 0:02:27]} 33. c4 {[%emt 0:02:28]} dxc4 {[%emt 0:02:18]} 34. d5 {[%emt 0:00:08]} Rc5 {[%emt 0:04:35]} 35. dxe6+ {[%emt 0:01:17]} Ke7 {[%emt 0:01:10]} 36. Qc3 {[%emt 0:00:31]} Qb3 {[%emt 0:00:49]} 37. Qd4 {[%emt 0:00:31]} Rd5 {[%emt 0:00:36]} 38. Qxc4 {[%emt 0:00:50]} Rd1+ {[%emt 0:00:27]} 39. Rxd1 {[%emt 0:00:06]} Qxd1+ {[%emt 0:00:05]} 40. Ka2 {[%emt 0:00:28]} Qd5 {[%emt 0:00:17]} 41. Qxd5 {[%emt 0:01:36]} Nxd5 {[%emt 0:00:14]} 42. b4 {[%emt 0:00:55]} Nf4 {[%emt 0:00:28]} 43. b5 {[%emt 0:00:20]} axb5 {[%emt 0:00:10]} 44. Bxb5 {[%emt 0:00:04]} Nxh5 {[%emt 0:00:11]} 45. Kb3 {[%emt 0:01:05]} Nf4 {[%emt 0:00:14]} 46. Kc3 {[%emt 0:00:32]} h5 {[%emt 0:00:12]} 47. a4 {[%emt 0:00:22]} b6 {[%emt 0:00:24]} 48. Kb4 {[%emt 0:00:23]} Kxe6 {[%emt 0:00:54]} 49. Bf1 {[%emt 0:00:38]} Kd6 {[%emt 0:01:45]} 50. Kb5 {[%emt 0:00:14]} Kc7 {[%emt 0:00:05]} 51. Kc4 {[%emt 0:00:07]} h4 {[%emt 0:00:21]} 52. Kd4 {[%emt 0:00:15]} Kd6 {[%emt 0:01:28]} 53. Ke3 {[%emt 0:00:05]} Ke5 {[%emt 0:00:07]} 54. Kf2 {[%emt 0:00:05]} Nxg6 {[%emt 0:00:08]} 55. Bb5 {[%emt 0:00:37]} Kf4 {[%emt 0:00:15]} 56. Bc6 {[%emt 0:00:47]} Ne5 {[%emt 0:00:07]} 57. Bd5 {[%emt 0:00:06]} h3 {[%emt 0:33:02]} 0-1